Cogmind - Beta 11 @@@ ROGUE MODE // 2022.03.19 @ 17:39:31 Player: Shin Result: Destroyed by as-21768 with Assembled Heavy Rifle Performance ------------- Evolutions (0) 0 Regions Visited (2) 400 Robots Destroyed (27) 135 Value Destroyed (493) 493 Prototype IDs (0) 0 Alien Tech Used (0) 0 Bonus (0) 0 TOTAL SCORE: 1028 Bonus ------- None Cogmind --------- Core Integrity 0/250 Matter 291/300 Energy 98/100 System Corruption 6% Temperature Cool (0) Movement Core (50) Location -10/Mines Parts ------- > --- POWER (1) -------- (None) > --- PROPULSION (2) --- (None) > --- UTILITY (2) ------ (None) > --- WEAPON (2) ------- (None) > --- INVENTORY (5) ---- Ion Engine Wheel High-capacity Matter Pod (145) Medium Armor Plating Peak State ------------ > --- POWER ------------ Light Nuclear Core > --- PROPULSION ------- Improved Aluminum Leg Improved Aluminum Leg > --- UTILITY ---------- Small Storage Unit Improved Terrain Scanner > --- WEAPON ----------- Improved Light Cannon Improved Light Cannon > --- INVENTORY -------- Ion Engine Improved Aluminum Leg Wheel High-capacity Matter Pod Medium Armor Plating Medium Armor Plating Improved Light Cannon Grenade Launcher [Rating: 16] Favorites ----------- Power Ion Engine Engine Ion Engine Power Core Light Nuclear Core Propulsion Improved Aluminum Leg Treads Improved Treads Leg Improved Aluminum Leg Utility Small Storage Unit Device Improved Terrain Scanner Storage Small Storage Unit Protection Medium Armor Plating Weapon Improved Light Cannon Energy Gun Small Laser Ballistic Cannon Improved Light Cannon Launcher Grenade Launcher Build | -11 -10 -10 ------- Run | Scr Mat Min Slots Evolved . | . . . Power . | . . . Propulsion . | . . . Utility . | . . . Weapon . | . . . Parts Attached 20 | 2 7 11 Power 1 | . . 1 Engine . | . . . Core 1 | . . 1 Reactor . | . . . Propulsion 5 | . 4 1 Treads 2 | . 2 . Leg 3 | . 2 1 Wheel . | . . . Hover . | . . . Flight . | . . . Utility 3 | 2 . 1 Device 2 | 2 . . Storage . | . . . Processor . | . . . Hackware . | . . . Protection 1 | . . 1 Artifact . | . . . Weapon 11 | . 3 8 Energy Gun 1 | . 1 . Energy Cannon . | . . . Ballistic Gun . | . . . Ballistic Cannon 7 | . 2 5 Launcher 3 | . . 3 Special Weapon . | . . . Impact Weapon . | . . . Slashing Weapon . | . . . Piercing Weapon . | . . . Special Melee Weapon . | . . . Unidentified Prototypes . | . . . Parts Lost 5 | . . 5 Power . | . . . Propulsion 2 | . . 2 Utility 1 | . . 1 Weapon 2 | . . 2 Highest Loss Streak 4 | . . 4 To Critical Strikes 1 | . . 1 Average Slot Usage (%) 98 | . 100 97 Engine 9 | . 14 5 Core 4 | . . 8 Treads 5 | . 11 . Leg 21 | . 16 27 Device 13 | . 14 13 Storage 13 | . 14 13 Energy Gun 4 | . 9 . Ballistic Cannon 22 | . 18 26 Naked Turns 9 | . . 9 Heaviest Build 25 | 14 19 25 Greatest Support 46 | 20 46 26 Greatest Overweight (x) 1 | . 1 1 Average Overweight (x) . | . . . Largest Inventory Capacity 8 | 8 8 8 Average Capacity 7 | 8 8 7 Most Carried 8 | 8 8 8 Average Carried 7 | 6 7 7 Final Capacity 8 | 8 8 5 Final Carried 8 | 8 8 4 Class Distribution -------------------- 100% | Mutant Dominant Class ---------------- Mutant | -10/Materials Mutant | -10/Mines Resources | -11 -10 -10 ----------- Run | Scr Mat Min Matter Collected 907 | 200 263 444 Remotely . | . . . Salvage Created 640 | 165 161 314 Parts 47 | 16 15 16 Haulers Intercepted . | . . . Recyclers Shooed 1 | . . 1 Parts Field Recycled . | . . . Retrieved Matter . | . . . Parts Self-Destructed . | . . . Prevented . | . . . Kills | -11 -10 -10 ------- Run | Scr Mat Min Combat Hostiles Destroyed 21 | . 8 13 Cannons 13 | . 8 5 AOE 8 | . . 8 Classes Destroyed 7 | 2 4 1 Worker 1 | . 1 . Builder 1 | . 1 . Tunneler 5 | 5 . . Recycler 3 | 1 . 2 Swarmer 9 | . 6 3 Grunt 8 | . 2 6 Assembled 4 | . . 4 Best Kill Streak 6 | 4 6 4 Combat Bots Only 6 | . 6 4 Max Kills in Single Turn 3 | 1 1 3 Gunslinging . | . . . Exploded 3 | . . 3 Melee . | . . . Uniques/NPCs Destroyed . | . . . Combat | -11 -10 -10 -------- Run | Scr Mat Min Damage Taken 1151 | . 244 907 Core 260 | . 68 192 Absorbed by Shields . | . . . Core Remaining (%) 100 | 100 . . Volleys Fired 61 | 13 20 28 Largest 2 | 2 2 2 Hottest 90 | 80 90 78 Shots Fired 115 | 26 40 49 Gun 36 | 26 10 . Cannon 73 | . 30 43 Launcher 6 | . . 6 Special . | . . . Kinetic 73 | . 30 43 Thermal 23 | 13 10 . Explosive 6 | . . 6 Electromagnetic 13 | 13 . . Robot Hit Streak 16 | 16 7 7 Robot Miss Streak 4 | 4 3 2 Penetration Max . | . . . Secondary Targets . | . . . Shots Hit Robots 67 | 19 22 26 Core Hits 42 | 7 12 23 Critical Kills . | . . . Critical Parts Destroyed . | . . . Critical Strikes 3 | . 1 2 Blast 3 | . 1 2 Melee Attacks . | . . . Impact . | . . . Slashing . | . . . Piercing . | . . . Sneak Attacks . | . . . Combat Hostiles . | . . . Follow-up Attacks . | . . . Damage Inflicted 1674 | 259 445 970 Guns 280 | 222 58 . Cannons 910 | . 387 523 Explosions 484 | 37 . 447 Melee . | . . . Ramming . | . . . Kinetic 910 | . 387 523 Thermal 183 | 125 58 . Explosive 447 | . . 447 Electromagnetic 134 | 134 . . Impact . | . . . Slashing . | . . . Piercing . | . . . Highest Corruption 6 | . 1 6 Average Corruption 1 | . 1 1 Corruption Purged . | . . . Corruption Blocked . | . . . Effects 4 | . 3 1 Message Errors 1 | . 1 . Matter Fused 1 | . . 1 Heat Flow Errors 1 | . 1 . Energy Discharges 1 | . 1 . Overload Shots . | . . . Overflow Damage 24 | . 4 20 Projectiles 24 | . 4 20 Explosions . | . . . Melee . | . . . Knockbacks 6 | . 4 2 Impact . | . . . Kinetic 5 | . 3 2 Secondary 1 | . 1 . Self-Inflicted Damage 44 | . . 44 Shots 3 | . . 3 Rammed . | . . . Targets Rammed . | . . . Kicked . | . . . Crushed . | . . . Highest Temperature 335 | 72 335 183 Average Temperature 73 | 27 94 74 Received Heat Transfer 426 | . 45 381 Siege Activations . | . . . Robots Corrupted . | . . . Combat Hostiles . | . . . Parts Fried 1 | 1 . . Impact Corruptions . | . . . Robots Melted . | . . . Combat Hostiles . | . . . Parts Melted . | . . . Heat Transferred 399 | 250 149 . Parts Sabotaged . | . . . Parts Stolen . | . . . Parts Stripped . | . . . Power Chain Reactions 1 | 1 . . Missiles Intercepted . | . . . Alert | -11 -10 -10 ------- Run | Scr Mat Min Peak Influence 452 | 30 275 452 Initial 30 | . 19 30 Average 184 | 15 117 307 Maximum Alert Level 2 | . 1 2 Low Security (%) 51 | 100 70 15 Level 1 46 | . 29 79 Level 2 2 | . . 4 Level 3 . | . . . Level 4 . | . . . Level 5 . | . . . High Security . | . . . Max Security . | . . . Squads Dispatched 1 | . 1 . Investigation 1 | . 1 . Extermination . | . . . Reinforcement . | . . . Assault . | . . . Garrison . | . . . Intercept . | . . . Searches Triggered . | . . . Construction Impeded . | . . . Haulers Reinforced . | . . . Active Scanning Responses . | . . . Cargo Convoy Interrupts . | . . . Stealth | -11 -10 -10 --------- Run | Scr Mat Min Distress Signals 1 | . 1 . Communications Jammed . | . . . Distress Signals . | . . . Times Spotted 36 | . 12 24 Peak Tracking Total 13 | . 5 13 Tactical Retreats . | . . . Traps | -11 -10 -10 ------- Run | Scr Mat Min Traps Triggered 1 | . 1 . Indirectly . | . . . Trap Hack Attempts . | . . . Triggered . | . . . Disarmed . | . . . Reprogrammed . | . . . Reused . | . . . Traps Extracted . | . . . Installed . | . . . Triggered . | . . . Machines | -11 -10 -10 ---------- Run | Scr Mat Min Machines Disabled 2 | . . 2 Max in Single Turn 1 | . . 1 Machines Sabotaged . | . . . Garrisons Compromised . | . . . Overloaded Fab Kills . | . . . Hacking | -11 -10 -10 --------- Run | Scr Mat Min Machines Accessed 3 | . 3 . Terminals 2 | . 2 . Fabricators . | . . . Repair Stations . | . . . Recycling Units 1 | . 1 . Scanalyzers . | . . . Garrison Access . | . . . Total Hacks 10 | . 10 . Successful 9 | . 9 . Failed 1 | . 1 . Catastrophic . | . . . Database Lockouts . | . . . Manual 5 | . 5 . Terminals 8 | . 8 . Fabricators . | . . . Repair Stations . | . . . Recycling Units 2 | . 2 . Scanalyzers . | . . . Garrison Access . | . . . Terminal Hacks 5 | . 5 . Robot Analysis 1 | . 1 . Transport Status 1 | . 1 . Hauler Manifests 1 | . 1 . Zone Layout 2 | . 2 . Fabricator Hacks . | . . . Repair Station Hacks . | . . . Recycling Unit Hacks 1 | . 1 . Report Inventory 1 | . 1 . Scanalyzer . | . . . Garrison Access Hacks . | . . . Unauthorized Hacks 3 | . 3 . Terminals 2 | . 2 . Botnet 2 | . 2 . Fabricators . | . . . Repair Stations . | . . . Recycling Units 1 | . 1 . Recyclers 1 | . 1 . Scanalyzers . | . . . Garrison Access . | . . . Data Cores Recovered . | . . . Used . | . . . Hacking Detections 3 | . 3 . Full Trace Events 1 | . 1 . Feedback Events . | . . . Feedback Blocked . | . . . Robot Schematics Acquired . | . . . Robots Built . | . . . Authchips . | . . . Time . | . . . Total Robot Build Rating . | . . . Part Schematics Acquired . | . . . Parts Built . | . . . Authchips . | . . . Time . | . . . Total Part Build Rating . | . . . Parts Repaired . | . . . Time . | . . . Parts Recycled . | . . . Recycled Matter . | . . . Retrieved Matter . | . . . Retrieved Components . | . . . Parts Scanalyzed . | . . . Part Schematics Acquired . | . . . Parts Damaged . | . . . Bothacking | -11 -10 -10 ------------ Run | Scr Mat Min Used RIF Installer . | . . . Robots Hacked . | . . . Non-combat . | . . . Combat . | . . . Robot Hacks Applied . | . . . Relay Couplers Released . | . . . Fabnet Peak Effective % . | . . . Robots Rewired . | . . . Allies Hacked . | . . . Hacks Repelled . | . . . Allies | -11 -10 -10 -------- Run | Scr Mat Min Total Allies . | . . . Largest Group . | . . . Highest-Rated Group . | . . . Highest-Rated Ally . | . . . Total Orders . | . . . Ally Attacks . | . . . Total Damage . | . . . Kills . | . . . Allies Corrupted . | . . . Allies Melted . | . . . Intel | -11 -10 -10 ------- Run | Scr Mat Min Robot Analysis Total 1 | . 1 . Derelict Logs Recovered 2 | . . 2 Drone Launches . | . . . Drone Recoveries . | . . . Exploration | -11 -10 -10 ------------- Run | Scr Mat Min Turns Passed 981 | 129 436 416 Spaces Moved 596 | 70 262 264 Core 18 | . . 18 Treads 79 | . 79 . Legs 499 | 70 183 246 Wheels . | . . . Hover . | . . . Flight . | . . . Fastest Speed 50 | 120 120 50 Average Speed 123 | 120 132 116 Slowest Speed 190 | 120 190 190 Overloaded Moves . | . . . Propulsion Burnouts . | . . . Robots Hopped . | . . . Cave-ins Triggered . | . . . Exploration Rate (%) 40 | 5 48 68 Regions Visited 2 Branch Regions 1 Pre-discovered Areas . | . . . Known Exits Taken . | . . . Unknown Exits Taken 2 | 1 1 . Scrap Searched 3 | . . 3 Spaces Dug . | . . . Terrain Destroyed 58 | 2 4 52 Melee . | . . . Projectile 9 | . 4 5 AOE 49 | 2 . 47 Terrain Rammed . | . . . Walls Destroyed . | . . . Machines Disabled . | . . . Actions | -11 -10 -10 --------- Run | Scr Mat Min Total 725 | 89 315 321 Wait 22 | . 5 17 Move 594 | 69 261 264 Hop . | . . . Pick Up 13 | 4 9 . Fast Attach 5 | . 4 1 Attach 7 | 1 2 4 Detach . | . . . Swap 8 | 1 1 6 Drop 15 | 1 13 1 Fire 61 | 13 20 28 Melee . | . . . Ram . | . . . Kick . | . . . Crush . | . . . Escape Stasis . | . . . Rewire . | . . . Trap . | . . . Miscellaneous . | . . . Route ------- -11/Scrapyard -10/Materials (discovered 2 exits: *Mat / [*Min]) -10/Mines (discovered 2 exits: *Mat x2) History --------- Turn | Location | Event 1 | -11/Scrapyard | Discovered new exit (range 3) 130 | -11/Scrapyard | Entered Materials 316 | -10/Materials | Build established: Mutant 336 | -10/Materials | Discovered new exit (range 3) 553 | -10/Materials | Discovered new exit (range 12) 566 | -10/Materials | Entered Mines 629 | -10/Mines | Discovered new exit (range 10) 662 | -10/Mines | Learned Materials emergency access door positions 666 | -10/Mines | Identified exit to Materials 699 | -10/Mines | Core integrity fell below 50% 941 | -10/Mines | Assembled infested the area 946 | -10/Mines | Assisted by a Guerilla fighting off Assembled 973 | -10/Mines | Released all parts (6) 980 | -10/Mines | Core integrity fell below 20% 982 | -10/Mines | Destroyed by as-21768 with Assembled Heavy Rifle Last Messages --------------- 00962_ as-84834 destroyed. 00963_ Imp. Terrain Scanner destroyed. 00963_ System corrupted by crushing effect (+2). 00964_ as-92470 destroyed. 00964_ K-01 Serf collects debris. 00966_ Grenade Launcher destroyed. 00966_ System corrupted by crushing effect (+3). 00966_ Knocked back. 00967_ K-01 Serf destroyed. 00968_ Extracted 50 matter. 00973_ Imp. Aluminum Leg destroyed. 00973_ Released Sml. Storage Unit. 00973_ Released Lgt. Nuclear Core. 00973_ Released Imp. Light Cannon. 00973_ Released Imp. Aluminum Leg. 00973_ Released Med. Armor Plating. 00973_ Released Imp. Light Cannon. 00979_ C-30 ARC bursts open, deploying its payload. 00979_ D-53 Grenadier unfolds itself. 00981_ MU-BFW(h) destroyed. Map ----- +----------------------------------------------------+ | | | | | | | | | | | | | | | ?????????????#?????????????????????#?????#???????? | | ??????????????????????????????????#??????????????? | | ????????????????????????????????????########?????? | | ?????????????#?????????????????????## # ###????? | | ?????????###??????????????########## ##???? | | ?????????# #???????????#?# ##??? | | ?????????# #?????#??#????? #??? | | ?????????# #??????????????????# #### | | ?????????# #??????#???????????# | | ?????????# #????????????????#??# ##### | | ????#???## ###?????????????????## #????? | | ?????????# ##?????### ????????##### !%* ##???? | | ????????## #???## ???#???##???##!*] ##??? | | ???????## ##### ?????????????##!] #???? | | ???????# ### ?????############= ##???? | | ???#???# ### ?????## # ##????? | | ??????## ##?# #????## a a #?????? | | ???#### ##??# """ ###### #### ##?????? | | ??## #### """ ## @ #??####??????? | | ??# ## """ ####?#?????????? | | ??# ## #??????????????? | | ??# t #### #????????#????#? | | ??# # ### #??# % #???????????#??? | | ?### ## #?### ##?# #??????????????? | | ???#####?#=!#???## ##??# #??????????????? | | ?????????#! #????######???# #####??????????????? | | ???????#?#!!#?????????????#"###??????????????????? | | ???????#?#!!#?#???????????#%?????????????????????? | | ?????#???# #?????????????#"????????#????????????? | | ?????????# #?????????????##?????????????????????? | | ???????#?# #?#??????????#???????????????????????? | | ?#?#?????# #???????????#????????????????????????? | | ??????#??# #????????#??????????????????????????## | | ???????### #?#?????????????????????? ?????????## | | ???????# #???????#??????????????????????????? | | ???????# ####???????????????????????????#???????? | | #?#????# #??????????????????????????## ###?????? | | ???????# #???????????#?????????????? #??????? | | ???????# #?????#???????????????????# """ #??????? | | ???????# #?######?????????????#????# """ #???????# | | ???????# ### ##?????????????????# """ #???????# | | ???????# ## ####??????????????? ????????# | | ??????## ##??????????????? ?????##### | +----------------------------------------------------+ Best States ------------- Heat Dissipation 25 Energy Generation 14 Energy Capacity 250 Matter Stores 300 Matter Capacity 300 Sight Range 16 Terrain Scan Range 16 Terrain Scan Density 10 Armor Coverage 225 Evasion (%) 55 Recoil Reduction 2 Item Schematics ----------------- None Robot Schematics ------------------ None Fabricated ------------ Nothing Alien Tech Used ----------------- None Achievements -------------- None Challenges ------------ None Game ------ Seed MissileGaussCharger Manual? 0 Play Time 00:22:19 Cumulative 53.3 hours Start 2022.03.19 @ 00:20:34 End 2022.03.19 @ 17:39:31 Sessions 5 Manual Loads 0 Difficulty Rogue Special Mode None Game No. 42 Rogue 42 Adventurer 0 Explorer 0 Win Type - Total 0 Types 0/0/0/0/0/0/0/0/0 Lore% 39 Gallery% 46 Achievement% 31 Wizard Run 0 Options --------- ASCII 0 Keyboard 0 Movement Mouse Keybinds 1 Fullscreen 1 Font 18/TerminusBold Map View 76x50 Tactical HUD 1 Map Filters NONE Filters NONE Steam 1 RUN: 4c958bf1-c3b2-4e86-9c43-236f8a12f361